[Event "Marshall CC FIDE Premier April 2024"]
[Site "New York"]
[Date "2024.04.15"]
[Round "5.6"]
[White "Bonin, Jay"]
[Black "Rosenthal, Max Manuel"]
[Result "0-1"]
[ECO "D44"]
[WhiteElo "2146"]
[BlackElo "1991"]
[Annotator "RC"]
[PlyCount "62"]
[EventDate "2024.02.02"]
[EventType "swiss"]
[EventCountry "USA"]
[SourceTitle "playchess.com"]
[Source "ChessBase"]
[SourceQuality "1"]
[TimeControl "5400+30"]

1. d4 {[%emt 0:00:30]} d5 {[%emt 0:00:06]} 2. Nf3 {[%emt 0:00:00]} Nf6 {[%emt 0:00:05]} 3. c4 {[%emt 0:00:00]} e6 {[%emt 0:00:05]} 4. Nc3 {[%emt 0:00:00]} c6 {[%emt 0:00:03]} 5. Bg5 {[%emt 0:00:04]} dxc4 {[%emt 0:00:06]} 6. e4 {[%emt 0:00:04]} b5 {[%emt 0:00:06]} 7. e5 {[%emt 0:00:04]} h6 {[%emt 0:00:03]} 8. Bh4 {[%emt 0:00:04]} g5 {[%emt 0:00:03]} 9. Nxg5 {[%emt 0:00:04]} hxg5 {[%emt 0:00:05]} 10. Bxg5 {[%emt 0:00:02]} Nbd7 {[%emt 0:00:07]} 11. g3 {[%emt 0:00:18]} Bb7 {[%emt 0:00:12]} 12. Bg2 {[%emt 0:00:06]} Qb6 {[%emt 0:00:04]} 13. exf6 {[%emt 0:00:08]} c5 {[%emt 0:00:05]} 14. d5 {[%emt 0:00:09]} O-O-O {[%emt 0:00:04]} 15. O-O {[%emt 0:00:17]} b4 {[%emt 0:00:03]} 16. Na4 {[%emt 0:00:06]} Qb5 {[%emt 0:00:13]} 17. a3 {[%emt 0:00:07]} Nb8 {[%emt 0:00:09]} 18. axb4 {[%emt 0:00:29]} cxb4 {[%emt 0:00:05]} 19. Qd4 {[%emt 0:01:04]} Bxd5 {[%emt 0:00:41]} 20. Qxa7 {[%emt 0:00:25]} Nd7 {[%emt 0:11:13]} 21. Rfc1 {[%emt 0:01:01]} Bh6 {[%emt 0:25:19]} 22. Bxh6 {[%emt 0:09:35]} Rxh6 {[%emt 0:01:01]} 23. b3 {[%emt 0:00:59]} Bxg2 {[%emt 0:03:08]} 24. Kxg2 {[%emt 0:04:39]} Qc6+ {[%emt 0:05:40]} 25. f3 {[%emt 0:01:05]} c3 {[%emt 0:00:42]} 26. Nxc3 {[%emt 0:00:41]} bxc3 {[%emt 0:00:08]} 27. Ra6 {[%emt 0:03:29]} Qc7 {[%emt 0:00:07]} 28. Qa8+ {[%emt 0:14:30]} Nb8 {[%emt 0:01:27]} 29. Ra7 {[%emt 0:00:05]} Rd2+ {[%emt 0:04:27]} 30. Kf1 {[%emt 0:00:09]} Qb6 {[%emt 0:00:49]} 31. Rxc3+ {[%emt 0:01:52]} Kd8 {[%emt 0:00:07]} 0-1

[Event "Marshall CC FIDE Premier April 2024"]
[Site "New York"]
[Date "2024.04.15"]
[Round "5.7"]
[White "Patel, Maahir M"]
[Black "Prestia, Paris"]
[Result "0-1"]
[ECO "D11"]
[WhiteElo "1879"]
[BlackElo "2059"]
[Annotator "TA"]
[PlyCount "70"]
[EventDate "2024.02.02"]
[EventType "swiss"]
[EventCountry "USA"]
[SourceTitle "playchess.com"]
[Source "ChessBase"]
[SourceQuality "1"]
[TimeControl "5400+30"]

{[%evp 14,69,-3,0,0,-10,-10,-24,-7,-31,0,-6,-23,-18,-20,0,-17,-30,-7,-27,-16,-41,-12,-3,-10,-66,-16,-18,-36,-43,-46,-36,-37,-53,-59,-56,-34,-85,-84,-107,-103,-129,-116,-105,-110,-145,-211,-803,-801,-783,-781,-741,-694,-607,-132,-983,-971,-29999]} 1. Nf3 {[%emt 0:00:02]} Nf6 {[%emt 0:00:06]} 2. g3 {[%emt 0:00:04]} d5 {[%emt 0:00:48]} 3. Bg2 {[%emt 0:02:19]} c6 {[%emt 0:00:52]} 4. O-O {[%emt 0:01:37]} Bf5 {[%emt 0:00:02]} 5. d4 {[%emt 0:00:25]} e6 {[%emt 0:00:04]} 6. c4 {[%emt 0:01:15]} Nbd7 {[%emt 1:31:38]} 7. Nbd2 {[%emt 0:01:32]} h6 {[%emt 0:00:00]} 8. b3 {[%emt 0:00:19]} a5 {[%emt 0:00:00]} 9. Bb2 {[%emt 0:00:17] [#]} a4 $1 {[%emt 0:00:00]} 10. Re1 {[%emt 0:02:13]} (10. Bc3 b5) 10... Ne4 {[%emt 0:00:00] Threatens to win with ...a3. Black has an edge.} 11. Nxe4 {[%emt 0:02:51]} Bxe4 {[%emt 0:00:00]} 12. Nd2 {[%emt 0:00:42]} Bxg2 {[%emt 0:00:00]} 13. Kxg2 {[%emt 0:00:06]} Bb4 {[%emt 0:00:00] Wards off Bc3} 14. Qc2 {[%emt 0:02:12]} Qa5 {[%emt 0:00:00]} 15. Rad1 {[%emt 0:02:18]} Nf6 {[%emt 0:00:00]} 16. f3 {[%emt 0:01:15]} h5 {[%emt 0:00:00]} 17. h4 {[%emt 0:03:01]} Qb6 {[%emt 0:00:00]} 18. Bc3 {[%emt 0:04:15]} O-O {[%emt 0:06:00]} 19. e4 {[%emt 0:06:13]} (19. Rb1 $11 Qa5 20. Bxb4 Qxb4 21. a3 Qxa3 22. bxa4) 19... dxe4 {[%emt 0:00:00]} (19... Bxc3 $15 20. Qxc3 axb3) 20. Nxe4 $11 {[%emt 0:01:04]} Nxe4 {[%emt 0:00:00]} 21. Rxe4 {[%emt 0:05:06]} Bxc3 {[%emt 0:01:30]} 22. Qxc3 {[%emt 0:00:06]} axb3 {[%emt 0:00:00]} 23. axb3 {[%emt 0:01:47]} Ra2+ {[%emt 0:00:00]} 24. Kh3 {[%emt 0:00:08]} Rfa8 {[%emt 0:00:00]} 25. Re5 {[%emt 0:01:35]} (25. Re3 $1 $15) 25... R8a3 $17 {[%emt 0:00:00]} 26. Rb1 {[%emt 0:00:59]} Rf2 {[%emt 0:02:30] Hoping for ...Raa2.} 27. Rxh5 {[%emt 0:03:26]} Raa2 {[%emt 0:00:00]} 28. Rh1 {[%emt 0:02:14] [#] Prevents Rh2+.} Qd8 $1 {[%emt 0:00:00][%cal Oe6e5] And now ...e5! would win. Black is much more active.} 29. d5 {[%emt 0:06:59]} exd5 {[%emt 0:00:00] ( -> ...Qd7+)} 30. Qd3 $2 {[%emt 0:00:10]} (30. Rg5 d4 31. Qd3 Qd7+ 32. Qf5 Qxf5+ 33. Rxf5) 30... g6 $19 {[%emt 0:00:00]} 31. Rg5 {[%emt 0:00:17]} Qd7+ {[%emt 0:00:00]} 32. Rg4 {[%emt 0:00:23]} Rad2 {[%emt 0:00:00]} 33. Qe3 {[%emt 0:00:36]} d4 $2 {[%emt 0:00:00]} (33... Qf5 $19 34. h5 Qxh5+ 35. Rh4 Qf5+ (35... Qxf3 36. Qe8+ Kg7 37. Qh8#) 36. Rg4 Rc2 (36... Qxf3 37. Qxf3 Rxf3 38. Rh2 $19)) 34. Qh6 $2 {[%emt 0:00:39][%mdl 8192] Inhibits Rde2.} (34. Qg5 $17) 34... Qf5 $1 {[%emt 0:00:00]} 35. Re1 {[%emt 0:00:50]} Rh2# {[%emt 0:00:00] Weighted Error Value: White=0.77/Black=0.27 (precise) .  Mistake:       	White=3     	Black=1      Inaccurate:     	White=2     	Black=2      OK:         	White=5     	Black=12     Best:        	---       	Black=3      Strong:       	---       	Black=1} 0-1

[Event "Marshall CC FIDE Premier April 2024"]
[Site "New York"]
[Date "2024.04.15"]
[Round "5.8"]
[White "Dong, Kyle Qiyu"]
[Black "Chen, Derek H"]
[Result "0-1"]
[ECO "A11"]
[WhiteElo "1972"]
[BlackElo "2070"]
[Annotator "TA"]
[PlyCount "106"]
[EventDate "2024.02.02"]
[EventType "swiss"]
[EventCountry "USA"]
[SourceTitle "playchess.com"]
[Source "ChessBase"]
[SourceQuality "1"]
[TimeControl "5400+30"]

{[%evp 9,106,17,22,4,-2,0,21,1,0,-19,-21,-14,0,0,0,0,0,-9,0,-35,-34,-33,-25,-25,-10,-19,-25,-22,0,-41,-33,-60,-59,-105,-102,-93,-60,-255,-158,-191,-208,-385,-398,-1001,-968,-1393,-1393,-1269,-1269,-1158,-1154,-957,-226,-476,-447,-447,-499,-445,-447,-445,-409,-563,-565,-717,-714,-2690,-2756,-5065,-2556,-29976,-29978,-29979,-29980,-29980,-29980,-29984,-29985,-29985,-29984,-29982,-29982,-29982,-29983,-29983,-29984,-29984,-29985,-29987,-29988,-29988,-29989,-29990,-29991,-29991,-29991,-29993,-29992,-29992,-29993]} 1. c4 {[%emt 0:00:02]} Nf6 {[%emt 0:00:03]} 2. g3 {[%emt 0:00:05]} c6 {[%emt 0:00:05]} 3. Bg2 {[%emt 0:00:31]} d5 {[%emt 0:00:45]} 4. Nf3 {[%emt 0:00:05]} Bg4 {[%emt 0:02:15]} 5. Qb3 {[%emt 0:03:15]} Qb6 {[%emt 0:03:03]} 6. d3 {[%emt 0:00:45]} Nbd7 {[%emt 0:07:55]} (6... Qxb3 {simplifies} 7. axb3 Nbd7 8. d4 e6) 7. Be3 {[%emt 0:06:35] Prevents e5.} dxc4 {[%emt 0:03:36]} 8. dxc4 {[%emt 0:00:47] The position is equal.} Qc7 {[%emt 0:00:57]} 9. Nbd2 {[%emt 0:09:40]} e5 {[%emt 0:00:18]} 10. h3 {[%emt 0:00:49]} Bxf3 {[%emt 0:00:52]} 11. Bxf3 {[%emt 0:02:06]} Bc5 {[%emt 0:00:08]} 12. Bxc5 {[%emt 0:09:38]} Nxc5 {[%emt 0:00:11]} 13. Qe3 {[%emt 0:00:49]} Ne6 {[%emt 0:00:50]} 14. Nb3 {[%emt 0:02:13]} O-O {[%emt 0:02:32]} 15. O-O {[%emt 0:03:00]} c5 {[%emt 0:00:57]} 16. Bg2 {[%emt 0:07:06]} Rad8 {[%emt 0:03:32]} 17. Rad1 {[%emt 0:02:43]} Nd4 {[%emt 0:10:18]} 18. Nxd4 {[%emt 0:09:19]} exd4 {[%emt 0:04:02]} 19. Qb3 {[%emt 0:01:57][%cal Oe2e3]} Rfe8 {[%emt 0:01:07]} 20. Rfe1 {[%emt 0:02:05] White is weak on the dark squares} Re7 {[%emt 0:02:02]} 21. e3 {[%emt 0:01:22]} (21. Bf3 $15) 21... Rde8 $17 {[%emt 0:00:23]} 22. Rd3 {[%emt 0:02:09]} b6 {[%emt 0:01:31]} 23. f4 $2 {[%emt 0:05:37] White does not recover from this.} ({White should try} 23. Qd1 $15) 23... h5 {[%emt 0:00:55][%cal Oh5h4]} 24. h4 {[%emt 0:02:52]} Qd7 {[%emt 0:02:02]} 25. Red1 $2 {[%emt 0:01:37]} (25. Qd1) 25... Qg4 $19 {[%emt 0:00:12]} (25... Rxe3 26. Rxe3 Rxe3 27. Qxe3 dxe3 28. Rxd7 Nxd7 29. Kf1 $19) 26. exd4 {[%emt 0:12:15]} (26. e4 Nxe4 27. Rb1) 26... Re1+ {[%emt 0:01:02]} 27. Bf1 {[%emt 0:02:19]} Qh3 {[%emt 0:03:39]} 28. Rxe1 {[%emt 0:01:39]} Rxe1 {[%emt 0:00:05]} 29. Rf3 {[%emt 0:00:39]} Ng4 {[%emt 0:00:32]} 30. Qc2 {[%emt 0:00:13] [#] Wards off Qh2+} Rxf1+ $40 {[%emt 0:00:26][%mdl 128] White is in trouble.} 31. Rxf1 {[%emt 0:00:23] [#]} Qxf1+ {[%emt 0:00:02][%mdl 512]} 32. Kxf1 {[%emt 0:00:15]} Ne3+ {[%emt 0:00:01]} (32... cxd4 $2 {perishes.} 33. Qd3 $18) 33. Ke2 {[%emt 0:00:44]} Nxc2 {[%emt 0:00:02]} 34. dxc5 {[%emt 0:00:11]} bxc5 {[%emt 0:00:08][%mdl 4096] Endgame. KN-KP} 35. a3 {[%emt 0:00:03]} Nd4+ {[%emt 0:00:26]} 36. Kf2 {[%emt 0:00:21]} Kf8 {[%emt 0:00:24]} 37. b4 {[%emt 0:00:08]} Nc2 {[%emt 0:00:39]} 38. bxc5 {[%emt 0:00:07]} Nxa3 {[%emt 0:00:11]} 39. c6 {[%emt 0:00:06]} Ke7 {[%emt 0:00:01] Black mates.} 40. c5 {[%emt 0:00:07]} Kd8 {[%emt 0:00:25]} 41. f5 {[%emt 0:00:06]} Kc7 {[%emt 0:00:05]} 42. g4 {[%emt 0:00:06]} hxg4 {[%emt 0:00:29]} 43. Kg3 {[%emt 0:00:17]} Nc4 {[%emt 0:00:09]} 44. Kxg4 {[%emt 0:00:09]} Ne5+ {[%emt 0:00:19]} 45. Kf4 {[%emt 0:00:08]} f6 {[%emt 0:00:03]} 46. Ke4 {[%emt 0:00:12]} Kxc6 {[%emt 0:00:13] KN-K3P} 47. Kd4 {[%emt 0:00:04]} a5 {[%emt 0:00:18]} 48. h5 {[%emt 0:00:04]} a4 {[%emt 0:00:22]} 49. Kc3 {[%emt 0:00:19]} Kxc5 {[%emt 0:00:04]} 50. h6 {[%emt 0:00:05]} gxh6 {[%emt 0:00:13]} 51. Kb2 {[%emt 0:00:07]} Kb4 {[%emt 0:00:28]} 52. Ka2 {[%emt 0:00:16]} h5 {[%emt 0:00:06]} 53. Kb1 {[%emt 0:00:03]} h4 {[%emt 0:00:12] Weighted Error Value: White=0.86/Black=0.22 (precise) .  Loses game:     	White=1     	---        Mistake:       	White=3     	---        Inaccurate:     	White=6     	Black=2      OK:         	White=6     	Black=9      Best:        	---       	Black=3} 0-1

[Event "Marshall CC FIDE Premier April 2024"]
[Site "New York"]
[Date "2024.04.15"]
[Round "5.9"]
[White "Gaw, Chloe"]
[Black "Das, Aditeya"]
[Result "1/2-1/2"]
[ECO "D10"]
[WhiteElo "2052"]
[BlackElo "1887"]
[Annotator "TA"]
[PlyCount "60"]
[EventDate "2024.02.02"]
[EventType "swiss"]
[EventCountry "USA"]
[SourceTitle "playchess.com"]
[Source "ChessBase"]
[SourceQuality "1"]
[TimeControl "5400+30"]

{[%evp 11,60,25,100,87,93,86,81,115,95,93,84,12,17,0,36,43,35,37,33,31,45,5,97,98,84,48,58,52,48,51,45,48,56,60,55,58,78,51,54,54,54,52,52,52,52,52,54,27,33,-14,37]} 1. d4 {[%emt 0:00:01]} d5 {[%emt 0:00:21]} 2. c4 {[%emt 0:00:03]} c6 {[%emt 0:00:04]} 3. Nc3 {[%emt 0:00:02]} Nf6 {[%emt 0:00:05]} 4. e3 {[%emt 0:00:03]} Bf5 {[%emt 0:00:31]} 5. cxd5 {[%emt 0:00:11]} cxd5 {[%emt 0:00:12]} 6. Qb3 {[%emt 0:00:12]} Qb6 {[%emt 0:03:30]} (6... Nc6 $11 {remains equal.}) 7. Nxd5 $16 {[%emt 0:04:30]} Nxd5 {[%emt 0:00:29]} 8. Qxd5 {[%emt 0:01:52]} Qb4+ {[%emt 0:05:05]} 9. Bd2 {[%emt 0:00:51] White is better.} Qxb2 {[%emt 0:00:10]} 10. Rc1 {[%emt 0:03:17]} Bd7 {[%emt 0:00:18] [#] Dodges Bb5} 11. Bb5 {[%emt 0:04:29] White is more active.} Nc6 $1 $11 {[%emt 0:02:33]} ({Not} 11... Bxb5 12. Rc8#) 12. Bxc6 {[%emt 0:19:37]} bxc6 {[%emt 0:00:22]} (12... Bxc6 $5 13. Rxc6 Rd8 $11) 13. Qc4 {[%emt 0:01:49]} e6 {[%emt 0:01:16]} 14. Nf3 {[%emt 0:03:12][%cal Bg1f3,Bf3e5,Be5c6][%mdl 32]} Qb5 {[%emt 0:03:31]} 15. Ne5 {[%emt 0:04:02]} Bd6 {[%emt 0:09:48]} 16. Nxc6 {[%emt 0:19:21]} Qg5 {[%emt 0:04:17]} (16... Qxc4 $11 {keeps the balance.} 17. Rxc4 Bxc6 18. Rxc6 Kd7) 17. O-O $16 {[%emt 0:03:02]} O-O {[%emt 0:04:42]} 18. f4 {[%emt 0:11:52]} Qf5 {[%emt 0:02:05]} 19. Ne5 {[%emt 0:11:43]} Rfc8 {[%emt 0:08:34]} 20. Qe2 {[%emt 0:02:03]} Bxe5 {[%emt 0:00:49]} 21. fxe5 {[%emt 0:00:39]} ({Less strong is} 21. Rxc8+ Rxc8 22. fxe5 Qe4 $18) 21... Qe4 {[%emt 0:00:45]} 22. Qf3 {[%emt 0:00:35]} Qxf3 {[%emt 0:01:58]} 23. gxf3 {[%emt 0:08:34]} (23. Rxf3 Rxc1+ 24. Bxc1 h6 $11) 23... Bb5 {[%emt 0:00:39]} 24. Rxc8+ {[%emt 0:00:00]} Rxc8 {[%emt 0:00:03][%mdl 4096] Endgame. KRB-KRB} 25. Rb1 {[%emt 0:00:00]} a6 {[%emt 0:00:04]} 26. e4 {[%emt 0:00:00]} f6 {[%emt 0:01:14]} 27. exf6 {[%emt 0:00:00]} gxf6 {[%emt 0:00:19]} 28. Rb2 {[%emt 0:00:51] Against Rc2} Rc4 {[%emt 0:02:06]} 29. Be3 {[%emt 0:02:09]} Rc3 30. Bd2 {[%emt 0:00:30]} (30. Kf2 $14 {feels stronger.}) 30... Rc4 {Weighted Error Value: White=0.15 (very precise) /Black=0.17 (very precise) .  Mistake:       	White=2     	Black=2      Inaccurate:     	White=4     	Black=1      OK:         	White=7     	Black=8      Best:        	White=1     	Black=3      Strong:       	---       	Black=1} (30... Rxf3 $11 31. Bh6 Bd3 32. Rg2+ Kf7 33. Rg7+ Ke8) 1/2-1/2

[Event "Marshall CC FIDE Premier April 2024"]
[Site "New York"]
[Date "2024.04.15"]
[Round "5.10"]
[White "Knowles, Chase"]
[Black "Zhu, Linxi"]
[Result "0-1"]
[ECO "E92"]
[WhiteElo "1978"]
[BlackElo "1980"]
[Annotator "TA"]
[PlyCount "92"]
[EventDate "2024.02.02"]
[EventType "swiss"]
[EventCountry "USA"]
[SourceTitle "playchess.com"]
[Source "ChessBase"]
[SourceQuality "1"]
[TimeControl "5400+30"]

{[%evp 17,91,27,44,42,54,48,39,35,47,39,67,54,73,82,84,91,132,103,133,93,117,81,114,110,122,111,128,56,52,48,107,48,68,65,67,68,97,98,120,96,212,223,233,227,197,41,65,0,0,0,24,0,0,0,0,0,0,-20,-17,-345,-331,-1717,-1655,-29989,-580,-29990,-29991,-29991,-29992,-29996,-29995,-29995,-29996,-29997,-29998,-29999]} 1. Nf3 {[%emt 0:00:01]} Nf6 {[%emt 0:01:06]} 2. c4 {[%emt 0:00:08]} g6 {[%emt 0:00:05]} 3. Nc3 {[%emt 0:00:04]} Bg7 {[%emt 0:00:06]} 4. e4 {[%emt 0:00:13]} d6 {[%emt 0:00:04]} 5. d4 {[%emt 0:00:06][%cal Bd2d4,Bd4d5][%mdl 32]} O-O {[%emt 0:00:06]} 6. Be2 {[%emt 0:00:05]} e5 {[%emt 0:00:07]} 7. d5 {[%emt 0:00:15]} a5 {[%emt 0:00:29]} 8. Bg5 {[%emt 0:00:21]} Na6 {[%emt 0:00:58]} 9. Nd2 {[%emt 0:06:31]} Nc5 {[%emt 0:00:58]} 10. b3 {[%emt 0:04:46]} h6 {[%emt 0:09:24]} 11. Be3 {[%emt 0:00:18]} Nfd7 {[%emt 0:02:28]} 12. f3 {[%emt 0:11:09] White is slightly better.} f5 {[%emt 0:01:04][%cal Bf7f5,Bf5f4][%mdl 32]} 13. O-O {[%emt 0:02:41]} Nf6 {[%emt 0:02:16]} 14. a3 {[%emt 0:01:39]} f4 {[%emt 0:01:18] [#]} 15. Bf2 {[%emt 0:00:18]} b6 {[%emt 0:05:38]} 16. b4 {[%emt 0:01:38]} Ncd7 {[%emt 0:01:24]} 17. Nb3 {[%emt 0:01:19]} Rf7 {[%emt 0:02:49]} 18. c5 {[%emt 0:01:49]} dxc5 {[%emt 0:01:25]} 19. bxc5 {[%emt 0:15:45]} Nxc5 {[%emt 0:00:36]} 20. Nxc5 {[%emt 0:00:18]} bxc5 {[%emt 0:00:05]} 21. Bxc5 {[%emt 0:00:39]} Bf8 {[%emt 0:01:41]} 22. Bf2 {[%emt 0:03:28]} ({White should play} 22. Bxf8 $16 {Bc5 would now be deadly.} Qxf8 23. Nb5) 22... g5 $14 {[%emt 0:00:45]} 23. Nb5 {[%emt 0:10:42]} h5 {[%emt 0:02:33]} (23... g4 $14) 24. Na7 {[%emt 0:03:42]} (24. d6 $16 cxd6 25. Bc4) 24... Bd6 {[%emt 0:04:04][%cal Oa8a7]} 25. Nxc8 {[%emt 0:02:28]} Qxc8 {[%emt 0:00:47]} 26. Qc2 {[%emt 0:00:59]} Qf8 {[%emt 0:03:03]} 27. a4 {[%emt 0:01:51]} Rh7 {[%emt 0:06:13]} 28. Rfc1 {[%emt 0:03:21]} h4 {[%emt 0:02:23] [#]} (28... Qh6 $16) 29. h3 $1 $18 {[%emt 0:01:54]} Nh5 {[%emt 0:02:03]} 30. Rab1 {[%emt 0:00:44]} Ng3 {[%emt 0:00:44]} 31. Bd1 $2 {[%emt 0:05:01]} (31. Rb5 $18) 31... Ba3 $14 {[%emt 0:01:54]} 32. Bc5 {[%emt 0:07:31]} ({White should try} 32. Qa2 $1 $14 Bxc1 33. Rxc1) 32... Bxc1 $11 {[%emt 0:00:28]} 33. Qxc1 {[%emt 0:01:09]} (33. Bxf8 $5 Be3+ $8 34. Kh2 Nf1+ 35. Kh1 Ng3+ 36. Kh2 Nf1+ 37. Kh1 Ng3+ 38. Kh2 $11) 33... Qc8 {[%emt 0:00:54]} 34. Qb2 {[%emt 0:00:28][%mdl 1024] White has compensation.} Qa6 $1 {[%emt 0:02:08] ( -> ...Qf1+)} 35. Bb3 {[%emt 0:00:57]} Re8 $1 {[%emt 0:01:04][%cal Og5g4]} 36. Rd1 {[%emt 0:03:09]} ({But not} 36. d6+ $2 Kh8 37. d7 Rxd7 $19) 36... Kh8 {[%emt 0:02:52]} 37. Qc2 {[%emt 0:03:02]} Qe2 {[%emt 0:07:55][%cal Og5g4] Hoping for ...g4!} 38. Qc3 $2 {[%emt 0:00:55][%mdl 8192]} (38. Rc1 $11 {and White stays safe.}) 38... g4 $1 $19 {[%emt 0:04:26] ...gxh3 is the strong threat.} 39. Re1 $2 {[%emt 0:04:15] [#]} (39. Qd3 Rb8 40. Bc4 gxf3 41. gxf3 Qxd3 42. Bxd3) 39... gxh3 $1 {[%emt 0:02:24][%csl Gh3][%cal Re2g2]} 40. Bf2 {[%emt 0:00:26] [#]} (40. Rxe2 Nxe2+) 40... h2+ $1 {[%emt 0:00:08]} 41. Kxh2 {[%emt 0:00:11]} Qxf2 {[%emt 0:00:06] Black mates.} 42. Qc6 {[%emt 0:01:09]} Rf8 {[%emt 0:02:25]} 43. Qc3 {[%emt 0:00:39]} h3 {[%emt 0:02:01][%csl Gh3][%cal Rf2g2]} 44. Qxe5+ {[%emt 0:01:03]} Rg7 {[%emt 0:00:05][%csl Gh3][%cal Rf2g2]} 45. Rg1 {[%emt 0:00:30]} Nf1+ {[%emt 0:00:04]} 46. Kxh3 {[%emt 0:00:05]} Qg3# {[%emt 0:00:04] Quite a comeback for Black.   Weighted Error Value: White=0.57/Black=0.11 (very precise) .  Loses game:     	White=1     	---        Mistake:       	White=5     	Black=2      Inaccurate:     	White=3     	Black=4      OK:         	White=10    	Black=6      Best:        	---       	Black=2      Strong:       	White=1     	Black=3} 0-1